fUSD/lending_fUSD_20240505
["ID","MTS","AMOUNT","RATE_DAILY","PERIOD"]
[325441537,1714901447999,-154.011408,0.00030886,7]
[325441538,1714901448010,-1117.324351,0.00030886,7]
[325441539,1714901448019,-1117.324351,0.00030886,7]
[325441540,1714901448029,-1117.324351,0.00030886,7]
[325441541,1714901448038,-151.0,0.00030886,7]
[325441542,1714901448048,-151.0,0.00030886,7]
[325441543,1714901448058,-154.715521,0.00030886,7]
[325441544,1714901448068,-151.0,0.00030886,7]
[325441545,1714901448077,-203.153672,0.00030886,7]
[325441546,1714901448087,-152.650521,0.00030886,7]
[325441547,1714901448096,-153.792128,0.00030886,7]
[325441548,1714901448105,-151.0,0.00030886,7]
[325441549,1714901448114,-151.0,0.00030886,7]
[325441550,1714901448123,-224.907381,0.00030886,7]
[325441551,1714901448133,-151.0,0.00030886,7]
[325441552,1714901448142,-151.0,0.00030886,7]
[325441553,1714901448152,-151.0,0.00030886,7]
[325441554,1714901448161,-151.0,0.00030886,7]
[325441555,1714901448171,-151.0,0.00030886,7]
[325441556,1714901448180,-151.0,0.00030886,7]
[325441557,1714901448190,-152.27017,0.00030886,7]
[325441558,1714901448199,-275.565877,0.00030886,7]
[325441559,1714901448212,-275.565877,0.00030886,7]
[325441560,1714901448222,-275.565877,0.00030886,7]
[325441561,1714901448231,-151.0,0.00030886,7]
[325441562,1714901448241,-275.565877,0.00030886,7]
[325441563,1714901448251,-151.0,0.00030886,7]
[325441564,1714901448260,-151.0,0.00030886,7]
[325441565,1714901448269,-275.565877,0.00030886,7]
[325441566,1714901448278,-275.565877,0.00030886,7]
[325441567,1714901448289,-151.0,0.00030886,7]
[325441568,1714901448299,-151.0,0.00030886,7]
[325441569,1714901448307,-151.0,0.00030886,7]
[325441570,1714901448316,-150.5,0.0003089,15]
[325441571,1714901448326,-301.20243789,0.00030899,2]
[325441572,1714901448336,-500000.0,0.000309,5]
[325441573,1714901448346,-342.0,0.000309,3]
[325441574,1714901448357,-160.0,0.000309,3]
[325441575,1714901448367,-153.034943,0.000309,7]
[325441576,1714901448376,-151.379386,0.000309,7]
[325441577,1714901448385,-151.0,0.000309,7]
[325441578,1714901448395,-151.0,0.000309,7]
[325441579,1714901448406,-151.0,0.000309,7]
[325441580,1714901448415,-151.0,0.000309,7]
[325441581,1714901448424,-151.0,0.000309,7]
[325441582,1714901448436,-151.0,0.000309,7]
[325441583,1714901448448,-151.0,0.000309,7]
[325441584,1714901448457,-151.0,0.000309,7]
[325441585,1714901448466,-151.0,0.000309,7]
[325441586,1714901448476,-151.0,0.000309,7]
[325441587,1714901448485,-151.0,0.000309,7]
[325441588,1714901448494,-169.172102,0.000309,7]
[325441589,1714901448504,-151.0,0.000309,7]
[325441590,1714901448513,-151.0,0.000309,7]
[325441591,1714901448522,-151.0,0.000309,7]
[325441592,1714901448531,-150.0,0.000309,3]
[325441593,1714901448541,-151.0,0.000309,7]
[325441594,1714901448551,-151.0,0.000309,7]
[325441595,1714901448560,-392.182879,0.000309,7]
[325441596,1714901448569,-392.182879,0.000309,7]
[325441597,1714901448579,-151.0,0.000309,7]
[325441598,1714901448588,-151.0,0.000309,7]
[325441599,1714901448597,-172.03201,0.000309,7]
[325441600,1714901448606,-1117.324351,0.000309,7]
[325441601,1714901448615,-1117.324351,0.000309,7]
[325441602,1714901448624,-151.0,0.000309,7]
[325441603,1714901448633,-151.0,0.000309,7]
[325441604,1714901448643,-151.0,0.000309,7]
[325441605,1714901448651,-275.565877,0.000309,7]
[325441606,1714901448661,-151.0,0.000309,7]
[325441607,1714901448670,-275.565877,0.000309,7]
[325441608,1714901448679,-151.0,0.000309,7]
[325441609,1714901448688,-888.0,0.00030903,3]
[325441610,1714901448697,-151.664655,0.00030904,7]
[325441611,1714901448706,-152.104996,0.00030904,7]
[325441612,1714901448715,-151.852549,0.00030904,7]
[325441613,1714901448724,-151.0,0.00030904,7]
[325441614,1714901448733,-152.132319,0.00030905,7]
[325441615,1714901448743,-4597.6639265,0.00030908,2]
[325441616,1714901448752,-1174.8841692,0.00030908,2]
[325441617,1714901448761,-53414.2959809,0.00030908,2]
[325441618,1714901448770,-1837.8887685,0.0003091,2]
[325441619,1714901448779,-8289.4005481,0.0003091,2]
[325441620,1714901448788,-28906.9049581,0.0003091,2]
[325441621,1714901448797,-5852.08008115,0.00030911,2]
[325441622,1714901448807,-207.58542229,0.00030911,2]
[325441623,1714901448815,-151.0,0.00030912,7]
[325441624,1714901448824,-280.993468,0.00030912,7]
[325441625,1714901448834,-151.0,0.00030912,7]
[325441626,1714901448845,-409.3828276,0.00030912,2]
[325441627,1714901448856,-1000.0,0.00030912,4]
[325441628,1714901448867,-2341.91451243,0.00030912,4]
[325441629,1714901448877,-710.33944675,0.00030912,15]
[325441630,1714901448887,-168.1135179,0.00030912,4]
[325441631,1714901448896,-276.4404,0.00030912,4]
[325441632,1714901448906,-538.41443529,0.00030912,4]
[325441633,1714901448915,-2266.21413518,0.00030912,4]
[325441634,1714901448925,-1559.39465,0.00030912,4]
[325441635,1714901448936,-372.70710779,0.00030912,4]
[325441636,1714901448947,-238.23985667,0.00030912,4]
[325441637,1714901448957,-155.0,0.00030912,3]
[325441638,1714901448966,-753.34991451,0.00030914,4]
[325441639,1714901448976,-156.53848964,0.00030929,7]
[325441640,1714901448985,-3090.25486695,0.00030932,4]
[325441641,1714901448994,-155.0991745,0.00030932,4]
[325441642,1714901449003,-251.088344,0.00030932,7]
[325441643,1714901449012,-151.0,0.00030932,7]
[325441644,1714901449021,-151.0,0.00030932,7]
[325441645,1714901449031,-183.03,0.00030951,15]
[325441646,1714901449040,-500.0,0.00030958,10]
[325441647,1714901449049,-553.22206741,0.0003098,3]
[325441648,1714901449060,-1162808.32036251,0.0003098,2]
[325441649,1714901449087,-164.039813,0.00030804,2]
[325441650,1714901449096,-3126.61253456,0.0003098,2]
[325441651,1714901449109,-1123.98068445,0.0003098,2]
[39,1714908634023,-214.30807914,0.00026998,2]
[41,1714908634043,-155.0,0.00030978,4]
[43,1714908634064,-136.25131137,0.00030978,3]
[45,1714908634086,-574.02446334,0.00030978,2]
[47,1714908634108,-15618.85475087,0.00030978,2]
[49,1714908634130,-882.33461522,0.00030979,4]
[51,1714908634153,-16982.66283877,0.00030979,4]
[53,1714908634175,-8373.95054556,0.0003098,2]
[55,1714908634200,-17987.28086421,0.0003098,2]
[57,1714908634223,-492.84148313,0.0003098,2]
[58,1714908634234,-264.69865618,0.0003098,2]
[59,1714908634248,-2084.58601039,0.0003098,2]
[61,1714908634271,-2450.0,0.0003098,2]
[63,1714908634293,-4069.02801231,0.0003098,2]
[65,1714908634316,-9093.21,0.0003098,2]
[67,1714908634340,-1271.24,0.0003098,2]
[69,1714908634363,-685.14132927,0.0003098,2]
[71,1714908634386,-2139.76192563,0.0003098,2]
[73,1714908634411,-581.05190244,0.0003098,2]
[75,1714908634434,-977.03499773,0.0003098,2]
[77,1714908634457,-6490.8279,0.0003098,2]
[87,1714908638762,-703.20536157,0.0003098,2]
[95,1714908638818,-622.21983407,0.0003098,2]
[97,1714908638831,-410.9497518,0.0003098,2]
[99,1714908638843,-27466.22037121,0.0003098,2]
[101,1714908638855,-335370.01226941,0.0003098,2]
[108,1714908638890,-697.25700831,0.0003098,2]
[113,1714908638915,-316.34399999,0.0003098,2]
[115,1714908638928,-19840.1776307,0.0003098,2]
[117,1714908638940,-836.87762474,0.0003098,2]
[127,1714908638990,-255.9999999,0.0003098,2]
[129,1714908639003,-461.61248665,0.0003098,2]
[131,1714908639027,-47018.75766705,0.0003098,2]
[133,1714908639050,-6409.66728378,0.0003098,2]
[135,1714908639074,-741.3170906,0.0003098,2]
[137,1714908639086,-1000.00663,0.0003098,2]
[139,1714908639110,-415.10301408,0.0003098,2]
[141,1714908639135,-358.9537836,0.0003098,2]
[143,1714908639147,-941.00123225,0.0003098,2]
[151,1714908639208,-493.68166636,0.0003098,2]
[153,1714908639232,-25817.40783778,0.0003098,2]
[155,1714908639258,-853.09015929,0.0003098,2]
[164,1714908640799,-5716.1327412,0.0003098,2]
[165,1714908640814,-5526.90923441,0.0003098,2]
[166,1714908640856,-1378.41396621,0.0003098,2]
[167,1714908640869,-4100.4399,0.0003098,2]
[168,1714908640883,-281.186742,0.0003098,2]
[169,1714908640895,-1841.28543829,0.0003098,2]
[171,1714908640921,-553.82966591,0.0003098,2]
[177,1714908640999,-3351.74839999,0.0003098,2]
[179,1714908641026,-345.91147168,0.0003098,2]
[181,1714908641054,-1600.96986562,0.0003098,2]
[183,1714908641080,-15607.18651901,0.0003098,2]
[185,1714908641106,-39224.19838232,0.0003098,2]
[187,1714908641132,-626.75251848,0.0003098,2]
[189,1714908641160,-2627544.78597601,0.0003098,2]
[191,1714908641185,-1087.29,0.0003098,2]
[249,1714908644803,-151.0,0.0003098,7]
[251,1714908644813,-392.182879,0.0003098,7]
[253,1714908644823,-392.182879,0.0003098,7]
[255,1714908644833,-151.0,0.0003098,7]
[257,1714908644843,-151.0,0.0003098,7]
[259,1714908644854,-1117.324351,0.0003098,7]
[261,1714908644864,-1117.324351,0.0003098,7]
[263,1714908644884,-151.0,0.0003098,7]
[269,1714908644943,-50000.0,0.00031,11]
[271,1714908644963,-512.99,0.00031,2]
[273,1714908644984,-1043.09,0.00031,2]
[277,1714908645026,-808.0,0.00031071,2]
[279,1714908645045,-437.0,0.00031071,2]
[281,1714908645066,-421.0,0.00031071,2]
[283,1714908645086,-1643.0,0.00031071,2]
[285,1714908645107,-1139.0,0.00031071,2]
[287,1714908645126,-3134.0,0.00031071,2]
[289,1714908645146,-971.0,0.00031071,2]
[291,1714908645167,-1396.0,0.00031071,2]
[292,1714908645177,-462.0,0.00031071,2]
[293,1714908645186,-156.53848964,0.00031087,7]
[294,1714908645196,-151.72922617,0.00031128,7]
[295,1714908645206,-151.72922617,0.00031153,7]
[297,1714908645226,-500.0,0.00031232,11]
[303,1714908645284,-839.52,0.00031361,2]
[305,1714908645303,-500.0,0.00031506,12]
[307,1714908645324,-500.0,0.0003178,13]
[309,1714908645343,-512.99,0.000319,2]
[311,1714908645363,-1043.09,0.000319,2]
[313,1714908645382,-150.0,0.00031943,2]
[315,1714908645402,-390.8660872,0.00031985,2]
[317,1714908645422,-50000.0,0.00032,12]
[321,1714908645459,-151.0,0.00032,7]
[325,1714908645498,-151.0,0.00032,7]
[330,1714908645547,-151.0,0.00032,7]
[332,1714908645567,-1117.324351,0.00032,7]
[337,1714908645615,-151.0,0.00032,7]
[339,1714908645635,-156.53848964,0.00032009,7]
[343,1714908645675,-888.0,0.00032273,5]
[345,1714908645695,-500.0,0.00032328,15]
[347,1714908645714,-13647.55406092,0.00032389,4]
[349,1714908646058,-3160.50279129,0.000325,4]
[351,1714908646087,-155.5982671,0.00032617,7]
[353,1714908646108,-156.53848964,0.00032648,7]
[355,1714908646129,-155.95726113,0.00032696,7]
[357,1714908646149,-512.99,0.000328,2]
[359,1714908646169,-1043.09,0.000328,2]
[365,1714908646231,-50000.0,0.00033,13]
[369,1714908646272,-856.0945211,0.00033093,2]
[371,1714908646292,-236.32695929,0.00033137,5]
[373,1714908646312,-3137.48076334,0.00033158,2]
[375,1714908646332,-157.77,0.00033178,2]
[377,1714908646353,-155.95726113,0.0003323,7]
[379,1714908646374,-156.53848964,0.00033353,7]
[381,1714908646396,-500.0,0.00033424,19]
[383,1714908646416,-155.95726113,0.00033488,7]
[385,1714908646438,-151.72922617,0.00033558,7]
[387,1714908646459,-156.53848964,0.00033664,7]
[389,1714908646482,-500.0,0.00033698,20]
[393,1714908646523,-856.0945211,0.00033891,2]
[399,1714908646583,-150.0,0.00033973,2]
[401,1714908646604,-150.0,0.00033973,2]
[405,1714908646634,-50000.0,0.00034,14]
[427,1714908646754,-151.0,0.00034,7]
[429,1714908646774,-1117.324351,0.00034,7]
[431,1714908646793,-151.0,0.00034,7]
[433,1714908646803,-257.204147,0.00034,7]
[435,1714908646814,-275.565877,0.00034,7]
[437,1714908646823,-151.0,0.00034,7]
[439,1714908646833,-275.565877,0.00034,7]
[441,1714908646843,-2297.0,0.00034071,2]
[443,1714908646853,-1395.0,0.00034071,2]
[445,1714908646863,-448.858,0.00034071,2]
[447,1714908646873,-150.0,0.00034158,2]
[449,1714908646883,-500.0,0.00034246,22]
[451,1714908646893,-150.25,0.00034247,2]
[453,1714908646903,-164.8214912,0.00034254,7]
[469,1714908646981,-163.06,0.00034638,2]
[487,1714908647084,-153.97223047,0.00034838,7]
[496,1714908647135,-150.5,0.0003498,15]
[498,1714908647144,-150.5,0.0003499,15]
[500,1714908647154,-50000.0,0.00035,15]
[502,1714908647164,-50000.0,0.00035,25]
[504,1714908647175,-2131.48949038,0.00035,7]
[506,1714908647186,-29230.78018036,0.00035,4]
[511,1714908647207,-1285.31672227,0.00035,4]
[513,1714908647216,-293.65347968,0.00035,15]
[515,1714908647226,-1666.19787824,0.00035,30]
[517,1714908647236,-1840.33,0.00035,5]
[519,1714908647245,-500.0,0.00035,120]
[521,1714908647255,-2000.0,0.00035,30]
[551,1714908647408,-151.0,0.00035,7]
[553,1714908647430,-151.0,0.00035,7]
[555,1714908647451,-154.20422152,0.00035017,7]
[557,1714908647475,-13647.55406092,0.00035028,7]
[559,1714908647496,-207.0,0.0003503,2]
[561,1714908647515,-884.76942798,0.00035068,30]
[563,1714908647535,-156.53848964,0.00035077,7]
[565,1714908647554,-884.76942798,0.00035205,30]
[567,1714908647573,-500.0,0.00035342,26]
[569,1714908647593,-151.72922617,0.00035383,7]
[571,1714908647613,-2126.83475484,0.0003546,2]
[573,1714908647632,-856.0945211,0.00035488,2]
[575,1714908647652,-1043.09,0.000355,2]
[577,1714908647673,-3137.48076334,0.00035516,2]
[579,1714908647692,-155.98438979,0.00035535,7]
[581,1714908647712,-150.5,0.0003558,15]
[583,1714908647732,-156.34643488,0.00035583,2]
[585,1714908647752,-39984.90004324,0.00035588,7]
[587,1714908647780,-3865.81,0.00035588,7]
[589,1714908647805,-9253.43644612,0.00035588,7]
[591,1714908647829,-2854.5,0.00035588,7]
[593,1714908647852,-681.83583395,0.00035588,7]
[595,1714908647876,-643.92736939,0.00035588,7]
[597,1714908647900,-3111.51171462,0.00035588,7]
[599,1714908647923,-28564.17911124,0.00035588,7]
[601,1714908647946,-1032.20097925,0.00035588,7]
[603,1714908647970,-6035.62203971,0.00035588,7]
[605,1714908647993,-1223.7000002,0.00035588,7]
[606,1714908648007,-1516.6,0.00035588,7]
[607,1714908648018,-1425.37930718,0.00035588,7]
[608,1714908648029,-934.36836134,0.00035588,7]
[609,1714908648042,-384.34999965,0.00035588,7]
[610,1714908648053,-1583.87922487,0.00035588,7]
[611,1714908648065,-736.62282743,0.00035588,7]
[612,1714908648077,-494.33920324,0.00035588,7]
[613,1714908648090,-3200.0,0.00035588,7]
[615,1714908648114,-2192.31003432,0.00035588,7]
[617,1714908648138,-372.33865253,0.00035588,7]
[619,1714908648161,-673.88867996,0.00035588,7]
[621,1714908648184,-440.2147745,0.00035588,7]
[623,1714908648208,-378.29434134,0.00035588,7]
[625,1714908648232,-281.0,0.00035588,7]
[627,1714908648257,-4714.52247968,0.00035588,7]
[629,1714908648281,-2118.30271669,0.00035588,7]
[630,1714908846244,3819.70321577,0.000118,2]
[631,1714908846269,4000.0,0.000118,2]
[632,1714908846292,4000.0,0.000118,2]
[661,1714909832524,-173697.57315242,0.0003098,2]
[662,1714909832537,-11691.02939977,0.0003098,2]
[682,1714909837541,-14360.57706809,0.0003098,2]
[684,1714909837803,-734.70866164,0.0003098,2]
[685,1714909837816,-96502.17980848,0.0003098,2]
[702,1714909839579,-752516.9273291,0.0003098,2]
[703,1714909839590,-7242.24091787,0.00030992,2]
[704,1714909839601,-1146.60013181,0.00030992,2]
[709,1714909839652,-167.93269796,0.0003259,2]
[721,1714909839778,-146438.74342707,0.00035588,7]
[326441672,1714911031753,-6490.8279,0.00012889,2]
[326441673,1714911031766,-295.44814184,0.00012889,2]
[326441674,1714911031778,-244.25320397,0.00012889,2]
[326441675,1714911031788,-545.2041,0.0001289,2]
[326441677,1714911031798,-179.67796345,0.000136,2]
[326441678,1714911031808,-250.0,0.000137,2]
[326441680,1714911031817,-500.0,0.000178,2]
[326441682,1714911031827,-450.0,0.00018,3]
[326441683,1714911031836,-1946.86,0.00018499,2]
[326441685,1714911031851,-158.6415,0.00018499,2]
[326441687,1714911031861,-150.0,0.00018597,2]
[326441689,1714911031871,-499.99,0.00018598,2]
[326441690,1714911031882,-464.34,0.00018598,2]
[326441692,1714911031891,-999.99,0.00018598,2]
[326441694,1714911031901,-11.04323258,0.00018599,2]
[326441695,1714911031914,-359.16532702,0.00018599,2]
[326441696,1714911031926,-756.03810701,0.00018599,2]
[326441697,1714911031939,-803.60000004,0.00018599,2]
[326441698,1714911031963,-3086.35319234,0.00018599,2]
[326441699,1714911031973,-5000.0,0.00018599,2]
[326441700,1714911031984,-5000.0,0.00018599,2]
[326441701,1714911031993,-150.99,0.00018599,2]
[326441702,1714911032003,-403.04,0.00018599,2]
[326441703,1714911032012,-312.6,0.00018599,2]
[326441704,1714911032022,-2777.04,0.00018599,2]
[326441705,1714911032031,-1082.43,0.00019178,2]
[326441706,1714911032041,-176.21,0.00019178,2]
[326441707,1714911032050,-4661.46,0.00019726,2]
[326441708,1714911032060,-500.0,0.0002,3]
[326441709,1714911032070,-1000.0,0.00020095,2]
[326441710,1714911032079,-210.0,0.00020457,2]
[326441711,1714911032090,-155.0,0.000209,2]
[326441712,1714911032100,-750.0,0.000219,2]
[326441713,1714911032110,-2748.73784033,0.00021999,2]
[326441714,1714911032119,-17263.85,0.00022,2]
[326441715,1714911032129,-550.0,0.00022,3]
[326441716,1714911032139,-156.53848966,0.00022102,2]
[326441717,1714911032149,-156.79601724,0.00022288,2]
[326441718,1714911032159,-155.95726113,0.00022315,2]
[326441719,1714911032169,-249.0,0.00022502,2]
[326441720,1714911032180,-155.98760117,0.00022984,2]
[326441721,1714911032190,-156.53848966,0.00023018,2]
[326441722,1714911032199,-155.18160784,0.00023263,2]
[326441723,1714911032209,-154.52925106,0.00023569,2]
[326441724,1714911032219,-154.52925106,0.00023573,2]
[326441725,1714911032228,-166.63741743,0.00023708,2]
[326441726,1714911032238,-600.0,0.00024,3]
[326441727,1714911032247,-175.78,0.00024114,2]
[326441728,1714911032257,-154.52925106,0.00024299,2]
[326441729,1714911032267,-154.52925106,0.00024407,2]
[326441730,1714911032278,-156.53848966,0.00024594,2]
[326441731,1714911032287,-154.52925106,0.0002471,2]
[326441732,1714911032296,-155.59826711,0.0002488,2]
[326441733,1714911032306,-170.23,0.00024899,2]
[326441734,1714911032316,-719.3944,0.000249,2]
[326441735,1714911032326,-90721.16188182,0.00025,2]
[326441736,1714911032336,-155.55003069,0.0002505,2]
[326441737,1714911032346,-155.59826711,0.00025161,2]
[326441738,1714911032356,-155.95726113,0.00025241,2]
[326441739,1714911032366,-166.63741745,0.00025264,2]
[326441740,1714911032375,-2299.19609543,0.00025279,2]
[326441741,1714911032385,-164.09578582,0.00025279,2]
[326441742,1714911032395,-176.21,0.00025379,2]
[326441743,1714911032404,-155.95726113,0.0002557,2]
[326441744,1714911032414,-163.69417388,0.00025857,2]
[326441745,1714911032423,-620.33048339,0.00026,2]
[326441746,1714911032433,-650.0,0.00026,3]
[326441747,1714911032443,-154.19264566,0.00026119,2]
[326441748,1714911032453,-153.92179106,0.00026189,2]
[326441750,1714911032462,-167.96542799,0.00026537,2]
[326441752,1714911032472,-2299.19609535,0.00026538,2]
[326441754,1714911032481,-158.32485787,0.0002667,2]
[326441756,1714911032491,-154.52925106,0.00027159,2]
[326441758,1714911032500,-2299.19609535,0.00027797,2]
[326441760,1714911032510,-154.52925106,0.00027802,2]
[326441762,1714911032520,-154.52925106,0.00027862,2]
[326441764,1714911032529,-700.0,0.00028,3]
[326441767,1714911032539,-154.19264566,0.00028106,2]
[326441769,1714911032548,-154.19264566,0.00028575,2]
[326441771,1714911032557,-1269.9693,0.00028678,2]
[326441773,1714911032567,-1000.0,0.00028678,2]
[326441775,1714911032576,-616.92825219,0.00028679,2]
[326441777,1714911032586,-150.23,0.00028768,2]
[326441779,1714911032595,-17781.9431,0.00028778,2]
[326441781,1714911032604,-165169.3774,0.00028778,2]
[326441783,1714911032614,-1219.461,0.00028879,2]
[326441785,1714911032623,-756.0,0.0002897,15]
[326441787,1714911032633,-1078.0,0.0002897,15]
[326441789,1714911032642,-756.0,0.0002898,15]
[326441791,1714911032651,-1078.0,0.0002898,15]
[326441793,1714911032661,-183.9,0.0002898,15]
[326441795,1714911032670,-616.92825218,0.00028984,2]
[326441797,1714911032680,-756.0,0.0002899,15]
[326441799,1714911032689,-1078.0,0.0002899,15]
[326441801,1714911032698,-150.5,0.0002899,15]
[326441803,1714911032708,-2299.19609535,0.00029057,2]
[326441805,1714911032717,-154.19264566,0.00029136,2]
[326441807,1714911032727,-616.92825218,0.0002929,2]
[326441809,1714911032736,-155.95726113,0.00029329,2]
[326441811,1714911032745,-168.22068823,0.00029593,2]
[326441813,1714911032755,-616.92825218,0.00029595,2]
[326441815,1714911032765,-10000.0,0.00029624,2]
[326441817,1714911032774,-961.99258366,0.00029736,2]
[326441819,1714911032784,-177.54622384,0.00029799,2]
[326441821,1714911032793,-30100.7625,0.000298,2]
[326441823,1714911032803,-23372.49057467,0.000298,2]
[326441825,1714911032816,-415.09721781,0.000298,2]
[326441838,1714911032931,-76212.41220752,0.000298,2]
[326441840,1714911032941,-154.19264566,0.00029836,2]
[326441842,1714911032950,-500.0,0.00029898,2]
[326441844,1714911032960,-16236.5783,0.00029898,2]
[326441846,1714911032969,-7500.0,0.00029899,2]
[326441848,1714911032979,-172.4746835,0.000299,2]
[326441850,1714911032988,-152.33681377,0.000299,2]
[326441852,1714911032998,-616.92825218,0.000299,2]
[326441854,1714911033007,-179.02628781,0.000299,2]
[326441856,1714911033016,-200.97588817,0.000299,2]
[326441858,1714911033026,-1904.3804621,0.000299,2]
[326441859,1714911033036,-1479.09423534,0.000299,2]
[326441860,1714911033045,-14598.95956492,0.000299,2]
[326441861,1714911033055,-154.52925106,0.00029977,2]
[326441862,1714911033064,-638.87360298,0.0002999,2]
[326441863,1714911033074,-150.23,0.0002999,2]
[326441864,1714911033083,-150.23,0.0002999,2]
[326441866,1714911033092,-150.23,0.0002999,2]
[326441868,1714911033101,-150.23,0.0002999,2]
[326441870,1714911033111,-638.87360298,0.0002999,2]
[326441872,1714911033120,-638.87360298,0.0002999,2]
[326441874,1714911033130,-150.23,0.0002999,2]
[326441876,1714911033139,-150.23,0.0002999,2]
[326441878,1714911033149,-150.3,0.00029992,2]
[326441880,1714911033158,-3122.53837794,0.0003,2]
[326441883,1714911033178,-17829.87473897,0.0003,2]
[326441905,1714911033368,-1457.69298297,0.0003,2]
[326442038,1714911037704,-648.70118642,0.00029624,2]
[326442039,1714911037717,-272.32466048,0.00029624,2]
[326442040,1714911037728,-493.68166636,0.00029624,2]
[326442041,1714911037757,-506.11840454,0.00029624,2]
[326442042,1714911037768,-2973.19679602,0.0003,7]
[326442043,1714911037781,-37240.92673159,0.0003,7]
[326442044,1714911037793,-3920.84642048,0.0003,7]
[326442045,1714911037875,-63446.52087953,0.0003,7]
[326442046,1714911037889,-6264.65999999,0.0003,7]
[326442047,1714911037901,-975.65419724,0.0003,7]
[326442048,1714911039836,-1101.76221023,0.0003,7]
[326442049,1714911039850,-170698.88322214,0.0003,7]
[326442050,1714911039943,-642.97969301,0.0003,7]
[326442051,1714911039999,-840.25339436,0.0003,7]
[326442052,1714911040012,-656.14,0.0003,7]
[326442053,1714911040024,-401.91663883,0.0003,7]
[326442054,1714911040108,-53496.06895209,0.0003,7]
[326442055,1714911040121,-947.72125674,0.0003,7]
[326442056,1714911040164,-804.97781834,0.0003,7]
[326442057,1714911040176,-59162.83958149,0.0003,7]
[326442058,1714911040200,-5472.17037339,0.0003,7]
[326442059,1714911040214,-22420.00432358,0.0003,7]
[326442060,1714911040227,-32574.31727075,0.0003,7]
[326442061,1714911040250,-5588.32644724,0.0003,7]
[326442067,1714911042828,-50215.41491439,0.0003,7]
[326442068,1714911043146,-39388.10445036,0.00025,2]
[326442069,1714911043157,-450504.29045966,0.0003,7]
[326442070,1714911043167,-203747.96794992,0.0003,2]
[326442080,1714911046234,-418570.73227504,0.0003,2]
[326442081,1714911046249,-87012.14654203,0.0003,2]
[326442082,1714911046263,-229620.88471678,0.0003,2]
[326442083,1714911046278,-155519.53745158,0.0003,2]
[326442084,1714911046292,-85476.032,0.0003,2]
[326442085,1714911046308,-57464.9485349,0.0003,2]
[326442086,1714911046322,-440.74979347,0.0003,2]
[326442087,1714911046343,-622.58686057,0.0003,2]
[326442088,1714911046355,-16747.61242291,0.0003,2]
[326442089,1714911046367,-417.92107087,0.0003,2]
[326442090,1714911046388,-466.70474391,0.0003,2]
[326442091,1714911046406,-275336.87843708,0.0003,2]
[326442092,1714911046417,-3269.17502,0.0003,2]
[326442093,1714911046429,-2017.62724224,0.0003,2]
[326442094,1714911046441,-2303.75270085,0.0003,2]
[326442095,1714911046454,-4247.25,0.0003,2]
[326442096,1714911046474,-1471.2205633,0.0003,2]
[326442097,1714911046487,-585.79333653,0.0003,2]